bitfinex-derivatives/quotes_SOLF0:USTF0_20250528
["timestamp","ask_amount","ask_price","bid_price","bid_amount"]
[1748391211058,11.337,176.33,176.22,5.6718]
[1748391211557,11.337,176.33,176.23,5.6716]
[1748391211760,11.337,176.33,176.26,0.04145879]
[1748391211761,0.03857381,176.3,176.26,0.04145879]
[1748391212655,5.67,176.29,176.26,0.04145879]
[1748391213757,5.67,176.29,176.26,5.71215879]
[1748391214158,5.67,176.29,176.26,0.04145879]
[1748391214465,0.03857381,176.3,176.26,0.04145879]
[1748391215051,0.03857381,176.3,176.28,5.6699]
[1748391216255,5.70797381,176.3,176.27,5.6703]
[1748391217364,0.03857381,176.3,176.28,5.6699]
[1748391218459,5.70807381,176.3,176.27,5.6702]
[1748391223163,0.03857381,176.3,176.26,0.04145879]
[1748391224763,5.6704,176.27,176.26,0.04145879]
[1748391226462,0.03857381,176.3,176.26,0.04145879]
[1748391226463,5.6703,176.28,176.26,0.04145879]
[1748391227367,5.6698,176.29,176.26,5.71195879]
[1748391227563,0.03857381,176.3,176.26,0.04145879]
[1748391228067,5.70807381,176.3,176.27,5.6703]
[1748391230170,5.70807381,176.3,176.28,5.67]
[1748391230369,0.03857381,176.3,176.28,5.67]
[1748391231581,0.03857381,176.3,176.29,5.6697]
[1748391231776,0.03857381,176.3,176.26,0.04145879]
[1748391232578,0.03857381,176.3,176.28,5.6699]
[1748391232780,5.70807381,176.3,176.28,5.6699]
[1748391234874,0.03857381,176.3,176.28,5.6699]
[1748391235078,0.03857381,176.3,176.26,0.04145879]
[1748391235079,0.03857381,176.3,176.29,5.6697]
[1748391236584,0.03857381,176.3,176.28,5.6699]
[1748391236782,0.03857381,176.3,176.26,6.55101889]
[1748391238486,0.03857381,176.3,176.28,5.6698]
[1748391239186,0.03857381,176.3,176.29,5.6697]
[1748391240382,5.6683,176.34,176.32,5.6686]
[1748391240584,2.0267,176.36,176.29,28.06]
[1748391240778,5.6687,176.33,176.29,28.06]
[1748391240981,5.6687,176.33,176.3,5.6693]
[1748391241385,5.70454472,176.33,176.3,5.70511634]
[1748391241580,5.6689,176.32,176.3,5.70511634]
[1748391242188,0.03584472,176.33,176.31,5.6691]
[1748391242385,0.03584472,176.33,176.3,0.03581634]
[1748391244193,0.03584472,176.33,176.31,5.6688]
[1748391244895,5.70434472,176.33,176.31,5.6688]
[1748391245394,0.03584472,176.33,176.3,5.70511634]
[1748391246385,0.03584472,176.33,176.3,0.03581634]
[1748391246785,5.6688,176.32,176.3,0.03581634]
[1748391247189,0.03584472,176.33,176.3,0.03581634]
[1748391248098,5.6691,176.31,176.3,0.03581634]
[1748391257202,5.6704,176.27,176.26,28.06]
[1748391257994,5.6714,176.24,176.23,28.06]
[1748391258301,5.6714,176.24,176.23,28.10260032]
[1748391264002,5.6711,176.25,176.23,28.10260032]
[1748391273909,5.6713,176.24,176.23,28.10260032]
[1748391274806,5.671,176.25,176.23,33.77430032]
[1748391275008,0.03787786,176.27,176.23,28.10260032]
[1748391276012,0.03787786,176.27,176.23,0.04260032]
[1748391276212,28.09787786,176.27,176.23,0.04260032]
[1748391276414,5.6726,176.2,176.19,28.06]
[1748391276617,3.8928,176.26,176.16,33.7337]
[1748391276904,5.6727,176.2,176.16,28.06]
[1748391277104,3.8928,176.26,176.16,33.7339]
[1748391277311,0.03646727,176.23,176.19,0.03895079]
[1748391277516,5.6726,176.2,176.19,0.03895079]
[1748391282618,5.6726,176.2,176.19,5.079e-05]
[1748391282923,5.676,176.1,176.02,490.06]
[1748391283112,1.9304,176.24,176.02,519.42]
[1748391283113,29.36,176.15,176.02,519.42]
[1748391283312,6.5095601,176.17,176.02,519.42]
[1748391283313,31.2798,176.14,176.02,519.42]
[1748391283516,5.6763,176.09,176.02,519.42]
[1748391283722,31.2798,176.14,176.02,525.9295601]
[1748391283918,0.04303338,176.1,176.06,0.03972139]
[1748391284122,0.04303338,176.1,176.06,29.39972139]
[1748391284911,0.04303338,176.1,176.06,0.03972139]
[1748391285916,0.04303338,176.1,176.07,5.6767]
[1748391286113,0.04303338,176.1,176.06,0.03972139]
[1748391286520,0.04303338,176.1,176.08,5.6765]
[1748391286721,0.04303338,176.1,176.06,0.03972139]
[1748391287125,0.04303338,176.1,176.09,5.6762]
[1748391288024,0.04303338,176.1,176.06,30.89972139]
[1748391289718,0.04303338,176.1,176.09,5.6762]
[1748391291021,0.04303338,176.1,176.08,5.6764]
[1748391291325,0.04303338,176.1,176.06,30.89972139]
[1748391291526,0.04303338,176.1,176.09,5.6762]
[1748391292720,0.04303338,176.1,176.06,30.89972139]
[1748391293324,0.04303338,176.1,176.08,5.6762]
[1748391295934,0.04303338,176.1,176.09,5.6762]
[1748391296127,0.04303338,176.1,176.06,30.89972139]
[1748391296436,0.04303338,176.1,176.08,5.6764]
[1748391296828,0.04303338,176.1,176.06,30.89972139]
[1748391297029,0.04303338,176.1,176.07,5.6767]
[1748391297933,5.71893338,176.1,176.07,5.6767]
[1748391300138,5.6762,176.09,176.06,36.57682139]
[1748391300341,0.04303338,176.1,176.06,30.89972139]
[1748391301933,5.6764,176.09,176.06,36.57672139]
[1748391304431,5.6765,176.08,176.06,36.57672139]
[1748391305243,0.04303338,176.1,176.06,30.89972139]
[1748391305244,5.6768,176.07,176.06,30.89972139]
[1748391305434,5.6768,176.07,176.06,0.03972139]
[1748391306138,5.6764,176.09,176.06,0.03972139]
[1748391306531,5.6767,176.08,176.06,0.03972139]
[1748391307538,5.6767,176.08,176.06,5.71682139]
[1748391308039,5.6767,176.08,176.06,0.03972139]
[1748391308741,5.6768,176.07,176.06,0.03972139]
[1748391309342,5.6766,176.08,176.06,0.03972139]
[1748391311448,5.6766,176.08,176.06,5.71682139]
[1748391311745,0.04303338,176.1,176.06,5.71682139]
[1748391311746,5.6763,176.09,176.06,5.71682139]
[1748391312146,5.71903338,176.1,176.07,5.6768]
[1748391312643,0.04303338,176.1,176.08,5.6764]
[1748391314742,0.04303338,176.1,176.09,5.6762]
[1748391314944,5.71883338,176.1,176.06,0.03972139]
[1748391315848,0.04303338,176.1,176.07,37.8895601]
[1748391316054,0.04303338,176.1,176.07,31.38]
[1748391316349,0.04303338,176.1,176.08,5.6762]
[1748391316743,0.04303338,176.1,176.07,31.38]
[1748391317850,1.8513,176.17,176.09,6.5095601]
[1748391318153,3.9137,176.21,176.09,6.5095601]
[1748391318553,3.9137,176.21,176.12,6.5095601]
[1748391318853,3.9137,176.21,176.15,0.04047474]
[1748391318854,0.03661741,176.18,176.15,0.04047474]
[1748391319046,5.70991741,176.18,176.15,5.71447474]
[1748391319248,0.03661741,176.18,176.15,0.04047474]
[1748391319649,0.03661741,176.18,176.17,5.6736]
[1748391321354,0.03661741,176.18,176.16,5.6738]
[1748391322358,0.03661741,176.18,176.17,5.6736]
[1748391322957,5.71001741,176.18,176.15,5.71467474]
[1748391323263,0.03661741,176.18,176.15,0.04047474]
[1748391323665,0.03661741,176.18,176.16,5.6739]
[1748391323863,0.03661741,176.18,176.15,6.55003484]
[1748391324465,0.03661741,176.18,176.16,5.6739]
[1748391324967,0.03661741,176.18,176.15,6.55003484]
[1748391327067,0.03661741,176.18,176.17,5.6736]
[1748391328664,2.0404,176.25,176.15,6.55003484]
[1748391328665,2.0404,176.25,176.19,5.6729]
[1748391328969,35.3256,176.26,176.18,31.36]
[1748391329167,33.3136,176.26,176.18,31.36]
[1748391329365,5.6722,176.22,176.18,31.36]
[1748391329564,33.3136,176.26,176.18,31.36]
[1748391329761,0.03930807,176.24,176.2,0.03774243]
[1748391330368,5.6717,176.23,176.2,0.03774243]
[1748391330567,0.03930807,176.24,176.2,0.03774243]
[1748391331162,0.03930807,176.24,176.2,5.71024243]
[1748391331573,0.03930807,176.24,176.2,0.03774243]
[1748391331871,5.71080807,176.24,176.2,0.03774243]
[1748391332072,5.71080807,176.24,176.21,5.6721]
[1748391332669,0.03930807,176.24,176.2,0.03774243]
[1748391333573,5.6719,176.23,176.2,0.03774243]
[1748391334174,5.6719,176.23,176.2,5.71024243]
[1748391334371,0.03930807,176.24,176.2,0.03774243]
[1748391334968,5.6718,176.23,176.2,0.03774243]
[1748391335269,0.03930807,176.24,176.2,0.03774243]
[1748391335475,0.03930807,176.24,176.2,5.71034243]
[1748391336375,5.6717,176.23,176.2,5.71034243]
[1748391336579,0.03930807,176.24,176.2,5.71034243]
[1748391336971,5.6717,176.23,176.2,5.71034243]
[1748391337377,0.03930807,176.24,176.2,5.71034243]
[1748391337770,5.6717,176.23,176.2,5.71034243]
[1748391338571,5.672,176.22,176.2,5.71034243]
[1748391338774,5.672,176.22,176.2,0.03774243]
[1748391339379,5.6723,176.21,176.2,0.03774243]
[1748391342776,0.03930807,176.24,176.2,0.03774243]
[1748391343373,0.03930807,176.24,176.21,5.672]
[1748391343575,0.03930807,176.24,176.2,0.03774243]
[1748391344182,0.03930807,176.24,176.23,5.6717]
[1748391347585,0.03930807,176.24,176.22,5.6718]
[1748391350782,0.03930807,176.24,176.23,5.6716]
[1748391352094,33.2936,176.3,176.25,5.6709]
[1748391352290,33.2936,176.3,176.23,31.06]
[1748391352488,1.9336,176.3,176.23,31.06]
[1748391352883,5.6703,176.28,176.25,5.6708]
[1748391353083,5.6703,176.28,176.25,5.71255605]
[1748391353084,5.70722589,176.28,176.25,5.71255605]
[1748391354183,5.6704,176.27,176.25,0.04175605]
[1748391354387,0.03692589,176.28,176.25,0.04175605]
[1748391354891,5.6707,176.26,176.25,0.04175605]
[1748391359981,5.6705,176.27,176.25,0.04175605]
[1748391360487,5.6707,176.26,176.25,0.04175605]
[1748391367595,0.03692589,176.28,176.25,0.04175605]
[1748391368095,5.6707,176.26,176.25,0.04175605]
[1748391376505,5.672,176.22,176.21,31.06]
[1748391376696,4.17008728,176.26,176.21,31.06]
[1748391376895,4.17008728,176.28,176.21,35.23008728]
[1748391377096,5.6711,176.25,176.21,35.23008728]
[1748391377297,37.16368728,176.3,176.21,35.23008728]
[1748391377498,0.04124715,176.27,176.24,0.04330396]
[1748391377696,5.6713,176.25,176.24,0.04330396]
[1748391380003,5.6708,176.26,176.24,0.04330396]
[1748391380205,0.04124715,176.27,176.24,0.04330396]
[1748391381505,5.671,176.25,176.24,0.04330396]
[1748391400524,5.671,176.25,176.1,79.02]
[1748391400525,5.672,176.22,176.1,79.02]
[1748391400723,4.17008728,176.25,176.17,30.54]
[1748391401324,5.6729,176.2,176.17,30.54]
[1748391401525,5.6729,176.2,176.17,30.57749648]
[1748391401724,5.673,176.19,176.17,30.57749648]
[1748391407838,5.71392317,176.2,176.17,30.57749648]
[1748391408225,5.71392317,176.2,176.18,4.17008728]
[1748391409031,0.04122317,176.2,176.18,4.17008728]
[1748391409426,0.04122317,176.2,176.18,9.84308728]
[1748391415035,0.04122317,176.2,176.18,4.17008728]
[1748391415542,5.6729,176.19,176.18,4.17008728]
[1748391416139,5.6729,176.19,176.17,30.57749648]
[1748391416339,5.6729,176.19,176.17,34.74758376]
[1748391417042,5.6729,176.19,176.17,40.42118376]
[1748391417636,5.71402317,176.2,176.17,40.42118376]
[1748391418842,5.673,176.19,176.17,40.42118376]
[1748391420443,5.673,176.19,176.17,34.74758376]
[1748391420645,5.6733,176.18,176.17,34.74758376]
[1748391420945,0.04122317,176.2,176.17,34.74758376]
[1748391421145,5.6731,176.19,176.17,40.42118376]
[1748391422245,5.6731,176.19,176.17,36.25109648]
[1748391422446,5.6731,176.19,176.17,40.42118376]
[1748391422843,5.6731,176.19,176.17,36.25109648]
[1748391423045,5.6731,176.19,176.17,40.42118376]
[1748391426946,5.6733,176.18,176.17,34.74758376]
[1748391427553,0.04122317,176.2,176.17,30.57749648]
[1748391428944,5.6733,176.18,176.17,30.57749648]
[1748391430548,5.6733,176.18,176.17,0.03749648]
[1748391436341,0.04122317,176.2,176.18,5.6731]
[1748391436544,0.04122317,176.2,176.19,4.17008728]
[1748391438256,5.71382317,176.2,176.19,4.17008728]
[1748391439358,5.6729,176.19,176.17,39.64088376]
[1748391440655,5.71402317,176.2,176.17,39.64088376]
[1748391440851,5.71402317,176.2,176.18,5.6732]
[1748391441450,5.71402317,176.2,176.17,39.64098376]
[1748391442760,0.04122317,176.2,176.18,5.6732]
[1748391444256,0.04122317,176.2,176.19,5.6729]
[1748391444850,0.04122317,176.2,176.19,9.84298728]
[1748391446457,29.76,176.31,176.19,9.85008728]
[1748391446756,29.76,176.31,176.25,4.17008728]
[1748391446952,29.76,176.31,176.2,117.7988]
[1748391446953,4.17008728,176.3,176.23,39.60158728]
[1748391447153,4.17008728,176.3,176.23,33.93008728]
[1748391447356,5.6713,176.24,176.23,33.93008728]
[1748391447555,5.6713,176.24,176.23,29.76]
[1748391452552,0.03647593,176.28,176.23,29.76]
[1748391453159,5.6708,176.26,176.23,29.76]
[1748391453464,5.6708,176.26,176.23,35.4315]
[1748391453865,5.6705,176.27,176.23,35.4315]
[1748391454061,5.6705,176.27,176.24,5.6712]
[1748391454463,5.6707,176.26,176.23,29.76]
[1748391456754,5.6711,176.25,176.23,29.76]
[1748391457561,5.6713,176.24,176.23,29.76]
[1748391459665,5.6712,176.25,176.23,29.76]
[1748391460161,5.6713,176.24,176.23,29.76]
[1748391471685,0.03647593,176.28,176.23,29.76]
[1748391471891,0.03647593,176.28,176.24,4.16968194]
[1748391472086,5.671,176.25,176.24,4.16968194]
[1748391475585,5.6706,176.27,176.24,9.84098194]
[1748391475789,5.6706,176.27,176.26,4.16968194]
[1748391475989,0.03647593,176.28,176.26,4.16968194]
[1748391476189,0.03647593,176.28,176.27,5.6704]
[1748391477493,0.03647593,176.28,176.26,4.2064139]
[1748391477992,0.03647593,176.28,176.26,0.03673196]
[1748391479293,5.70667593,176.28,176.26,0.03673196]
[1748391480194,5.6704,176.27,176.26,0.03673196]
[1748391483699,0.03647593,176.28,176.26,0.03673196]
[1748391483901,3.9656,176.36,176.27,35.73220436]
[1748391484098,3.9656,176.36,176.3,6.51220436]
[1748391484300,5.6689,176.32,176.3,6.51220436]
[1748391484695,40.5532,176.39,176.31,29.22]
[1748391485005,0.04296355,176.37,176.33,0.04215495]
[1748391485894,5.6683,176.34,176.33,0.04215495]
[1748391487810,0.04296355,176.37,176.33,0.04215495]
[1748391488775,5.6681,176.34,176.33,0.04215495]
[1748391490498,5.6688,176.32,176.31,29.22]
[1748391490806,2.0444,176.36,176.27,29.22]
[1748391491005,5.67,176.28,176.27,29.22]
[1748391501116,0.03916659,176.29,176.27,29.22]
[1748391501811,5.70886659,176.29,176.27,29.22]
[1748391507521,0.03916659,176.29,176.27,29.22]
[1748391509123,0.03916659,176.29,176.27,34.8903]
[1748391511922,0.03916659,176.29,176.28,5.67]
[1748391512120,2.0444,176.36,176.27,35.73220436]
[1748391512521,5.6683,176.34,176.3,5.6692]
[1748391512718,5.6683,176.34,176.29,110.68]
[1748391513122,0.03747302,176.33,176.3,0.03654231]
[1748391513324,0.03747302,176.33,176.31,5.669]
[1748391516120,0.03747302,176.33,176.32,5.6688]
[1748391516314,0.03747302,176.33,176.3,0.03654231]
[1748391516514,0.03747302,176.33,176.31,29.04]
[1748391516719,0.03747302,176.33,176.31,34.7088]
[1748391517122,0.03747302,176.33,176.31,29.04]
[1748391517625,0.03747302,176.33,176.32,5.6688]
[1748391519029,3.9173,176.4,176.35,5.6678]
[1748391519229,3.9173,176.4,176.33,6.51220436]
[1748391519831,5.6669,176.38,176.35,5.6678]
[1748391520127,29.04,176.46,176.36,6.51220436]
[1748391520324,29.04,176.46,176.39,0.03699274]
[1748391520325,34.9836,176.46,176.39,0.03699274]
[1748391521732,5.666,176.41,176.39,0.03699274]
[1748391527134,5.6662,176.4,176.39,0.03699274]
[1748391527332,34.9836,176.46,176.39,0.03699274]
[1748391527723,5.6661,176.41,176.39,0.03699274]
[1748391529727,34.9836,176.46,176.39,0.03699274]
[1748391529728,5.6662,176.4,176.39,0.03699274]
[1748391529936,0.03732661,176.41,176.35,29.04]
[1748391530136,3.9736,176.39,176.35,29.04]
[1748391530437,5.668,176.35,176.32,34.4285]
[1748391531023,5.70495863,176.35,176.32,34.46774735]
[1748391531232,5.6684,176.34,176.32,28.79924735]
[1748391531730,5.70485863,176.35,176.32,34.46794735]
[1748391532231,0.03695863,176.35,176.32,34.46794735]
[1748391533134,5.70485863,176.35,176.32,34.46794735]
[1748391536536,5.6681,176.34,176.32,34.46794735]
[1748391536729,5.6681,176.34,176.32,28.79924735]
[1748391537833,5.70485863,176.35,176.32,34.46794735]
[1748391538337,5.6682,176.34,176.32,28.79924735]
[1748391542030,5.6682,176.34,176.32,34.46794735]
[1748391543535,5.6684,176.33,176.32,0.03924735]
[1748391543741,0.03695863,176.35,176.27,28.76]
[1748391544039,5.6699,176.29,176.27,34.4302]
[1748391544537,5.6699,176.29,176.27,28.76]
[1748391545331,5.6699,176.29,176.27,34.4302]
[1748391545732,5.6699,176.29,176.27,28.76]
[1748391545936,0.04316142,176.3,176.26,0.03960834]
[1748391547437,5.6704,176.27,176.26,0.03960834]
[1748391554932,0.04316142,176.3,176.2,28.76]
[1748391555131,28.76,176.29,176.17,28.76]
[1748391555341,1.8874,176.28,176.17,28.76]
[1748391555642,6.51220436,176.24,176.12,28.76]
[1748391555934,0.03905386,176.2,176.16,0.04015458]
[1748391556137,28.79949587,176.2,176.16,0.04106565]
[1748391556341,28.79949587,176.2,176.09,28.76]
[1748391556529,5.6749,176.14,176.09,28.76]
[1748391556729,35.27220436,176.2,176.09,34.4361]
[1748391557129,5.6744,176.15,176.09,34.4361]
[1748391557335,0.03795405,176.14,176.1,0.03802347]
[1748391557644,0.03795405,176.14,176.1,5.71372347]
[1748391557836,0.03795405,176.14,176.1,0.03802347]
[1748391558038,0.03795405,176.14,176.11,6.51220436]
[1748391558233,0.03795405,176.14,176.1,0.03802347]
[1748391558947,0.03795405,176.14,176.13,5.6749]
[1748391562538,0.03795405,176.14,176.13,35.7749]
[1748391562931,7.5824,176.21,176.16,5.6737]
[1748391563536,5.6727,176.2,176.16,5.6737]
[1748391563939,5.70905875,176.2,176.16,5.71090806]
[1748391564536,0.03635875,176.2,176.17,5.6735]
[1748391564937,0.03635875,176.2,176.16,0.03720806]
[1748391565138,0.03635875,176.2,176.17,5.6735]
[1748391566141,0.03635875,176.2,176.18,5.6732]
[1748391566940,0.03635875,176.2,176.16,0.03720806]
[1748391567744,0.03635875,176.2,176.19,5.6729]
[1748391567945,0.03635875,176.2,176.16,0.03720806]
[1748391568342,0.03635875,176.2,176.17,5.6733]
[1748391568839,0.03635875,176.2,176.16,0.03720806]
[1748391569044,0.03635875,176.2,176.17,5.6735]
[1748391569348,0.03635875,176.2,176.16,0.03720806]
[1748391569548,0.03635875,176.2,176.17,5.6733]
[1748391569937,0.03635875,176.2,176.16,0.03720806]
[1748391570343,5.673,176.19,176.16,5.71090806]
[1748391570648,0.03635875,176.2,176.16,0.03720806]
[1748391570845,0.03635875,176.2,176.18,5.6732]
[1748391571745,0.03635875,176.2,176.19,5.6729]
[1748391575452,0.03635875,176.2,176.18,30.1]
[1748391575745,0.03635875,176.2,176.16,0.03720806]
[1748391575945,5.673,176.19,176.16,0.03720806]
[1748391576144,0.03635875,176.2,176.16,0.03720806]
[1748391577849,5.6736,176.17,176.16,0.03720806]
[1748391578656,0.03635875,176.2,176.1,30.1]
[1748391578950,40.53960436,176.19,176.06,32.0892]
[1748391579141,32.0354,176.18,176.07,5.6766]
[1748391579345,32.0354,176.18,176.06,30.1]
[1748391579547,6.51220436,176.16,176.06,30.1]
[1748391579752,5.6757,176.11,176.09,0.03859358]
[1748391580649,0.04221376,176.13,176.09,0.03859358]
[1748391582052,5.6757,176.11,176.09,0.03859358]
[1748391582649,0.04221376,176.13,176.09,0.03859358]
[1748391584051,5.71721376,176.13,176.09,5.71449358]
[1748391584953,5.6752,176.12,176.09,5.71449358]
[1748391586056,5.71731376,176.13,176.09,5.71449358]
[1748391586655,5.6755,176.12,176.09,0.03859358]
[1748391587752,5.71741376,176.13,176.09,0.03859358]
[1748391587949,5.71741376,176.13,176.09,5.71449358]
[1748391588253,0.04221376,176.13,176.09,0.03859358]
[1748391588456,0.04221376,176.13,176.1,5.6758]
[1748391589955,5.71711376,176.13,176.1,5.6758]
[1748391593954,5.6752,176.12,176.09,5.71459358]
[1748391594151,0.04221376,176.13,176.09,0.03859358]
[1748391595060,5.71731376,176.13,176.1,5.6756]
[1748391597458,5.6752,176.12,176.1,5.6756]
[1748391599462,5.71721376,176.13,176.1,5.6756]
[1748391601259,0.04221376,176.13,176.09,5.71459358]
[1748391601461,0.04221376,176.13,176.09,0.03859358]
[1748391604174,5.6756,176.11,176.09,0.03859358]
[1748391604672,0.04221376,176.13,176.09,0.03859358]
[1748391605663,5.6752,176.12,176.09,0.03859358]
[1748391606166,0.04221376,176.13,176.09,0.03859358]
[1748391607270,5.6752,176.12,176.09,0.03859358]
[1748391607771,5.6755,176.11,176.09,5.71469358]
[1748391607971,0.04221376,176.13,176.09,0.03859358]
[1748391608169,5.6754,176.12,176.09,0.03859358]
[1748391608576,0.04221376,176.13,176.09,0.03859358]
[1748391609473,5.6757,176.11,176.09,0.03859358]
[1748391611077,5.6758,176.1,176.09,0.03859358]
[1748391614173,5.6773,176.06,176.02,520.64]
[1748391614580,5.6773,176.06,176.03,5.6779]
[1748391615177,5.71401168,176.06,176.03,5.72133352]
[1748391615779,0.03671168,176.06,176.03,0.04343352]
[1748391616976,5.6776,176.04,176.03,0.04343352]
[1748391620476,0.03671168,176.06,175.98,30.48]
[1748391620680,1.9248,176.05,175.98,30.48]
[1748391620877,32.4048,176.05,175.98,30.48]
[1748391621077,5.6793,175.99,175.98,30.48]
[1748391621272,32.4048,176.05,175.98,30.48]
[1748391621471,0.0418564,176.03,176.0,0.04122482]
[1748391621676,5.6787,176.01,176.0,0.04122482]
[1748391622970,30.48,176.01,175.91,40.48024137]
[1748391623375,30.48,176.01,175.92,5.6814]
[1748391623571,5.6807,175.95,175.92,5.6814]
[1748391623983,5.6813,175.93,175.92,0.04265799]
[1748391624470,5.6811,175.94,175.92,0.04265799]
[1748391624676,0.03881583,175.95,175.92,0.04265799]
[1748391625076,5.71971583,175.95,175.92,0.04265799]
[1748391625284,0.03881583,175.95,175.92,0.04265799]
[1748391625472,5.6813,175.93,175.92,0.04265799]
[1748391625776,0.03881583,175.95,175.92,0.04265799]
[1748391627778,0.03881583,175.95,175.93,5.6813]
[1748391628578,0.03881583,175.95,175.92,0.04265799]
[1748391629083,5.6811,175.94,175.92,0.04265799]
[1748391629881,0.03881583,175.95,175.92,0.04265799]
[1748391630883,0.03881583,175.95,175.92,5.72425799]
[1748391631581,0.03881583,175.95,175.92,0.04265799]
[1748391632381,5.71971583,175.95,175.92,0.04265799]
[1748391632576,0.03881583,175.95,175.92,0.04265799]
[1748391632891,5.71951583,175.95,175.92,0.04265799]
[1748391634690,5.6813,175.94,175.92,0.04265799]
[1748391635688,5.6813,175.93,175.92,0.04265799]
[1748391636185,5.6813,175.93,175.92,5.799e-05]
[1748391636484,30.53881583,175.95,175.85,30.5]
[1748391636685,1.9682,175.94,175.85,30.5]
[1748391636892,5.6831,175.88,175.85,30.5]
[1748391637283,1.9682,175.94,175.85,30.5]
[1748391637284,1.9682,175.94,175.85,30.53632558]
[1748391637485,0.04181754,175.88,175.85,30.53632558]
[1748391638290,0.04181754,175.88,175.85,0.03632558]
[1748391638690,5.6835,175.86,175.85,0.03632558]
[1748391638887,0.04181754,175.88,175.85,0.03632558]
[1748391639093,5.72481754,175.88,175.85,0.03632558]
[1748391639392,0.04181754,175.88,175.85,0.03632558]
[1748391639598,5.6835,175.87,175.85,0.03632558]
[1748391639796,0.04181754,175.88,175.85,0.03632558]
[1748391641295,0.04181754,175.88,175.85,5.72012558]
[1748391642593,0.04181754,175.88,175.85,0.03632558]
[1748391643102,0.04181754,175.88,175.86,5.6833]
[1748391644401,0.04181754,175.88,175.87,5.6832]
[1748391645596,0.04181754,175.88,175.86,5.6834]
[1748391646305,0.04181754,175.88,175.87,5.6832]
[1748391646894,0.04181754,175.88,175.85,30.53632558]
[1748391647598,0.04181754,175.88,175.86,5.6833]
[1748391647799,0.04181754,175.88,175.85,30.53632558]
[1748391647999,0.04181754,175.88,175.87,5.6832]
[1748391655306,5.9059,175.98,175.87,6.51220436]
[1748391655706,5.6809,175.95,175.91,5.6818]
[1748391655906,5.6809,175.95,175.9,30.92]
[1748391656406,0.03971775,175.94,175.91,0.04210929]
[1748391657106,0.03971775,175.94,175.91,5.72390929]
[1748391658207,5.72071775,175.94,175.91,5.72390929]
[1748391658706,5.6814,175.93,175.91,0.04210929]
[1748391659304,5.72081775,175.94,175.91,0.04210929]
[1748391659905,5.72081775,175.94,175.91,5.72400929]
[1748391660107,0.03971775,175.94,175.91,0.04210929]
[1748391661707,5.6816,175.92,175.91,0.04210929]
[1748391661906,0.03971775,175.94,175.91,0.04210929]
[1748391663318,0.03971775,175.94,175.92,5.6816]
[1748391663519,0.03971775,175.94,175.91,0.04210929]
[1748391663920,0.03971775,175.94,175.93,5.6813]
[1748391668320,0.03971775,175.94,175.92,5.6815]
[1748391668521,0.03971775,175.94,175.91,0.04210929]
[1748391668923,5.72081775,175.94,175.91,0.04210929]
[1748391670323,0.03971775,175.94,175.91,0.04210929]
[1748391670726,5.72091775,175.94,175.91,0.04210929]
[1748391671124,5.72091775,175.94,175.91,5.72400929]
[1748391671925,0.03971775,175.94,175.91,5.72400929]
[1748391672323,0.03971775,175.94,175.93,5.6813]
[1748391672623,5.6795,175.99,175.92,6.51220436]
[1748391672929,30.92,176.03,175.92,6.51220436]
[1748391673125,5.6789,176.01,175.92,6.51220436]
[1748391673331,5.846,176.05,175.99,5.6791]
[1748391673633,0.04108494,176.04,176.0,0.04353017]
[1748391673922,0.04087345,176.04,176.0,30.96133113]
[1748391676728,5.71887345,176.04,176.0,36.64023113]
[1748391677630,0.04087345,176.04,176.01,5.6786]
[1748391677823,0.04087345,176.04,176.0,30.96133113]
[1748391678223,5.6781,176.03,176.0,30.96133113]
[1748391679121,0.04087345,176.04,176.0,30.96133113]
[1748391680928,5.6787,176.01,176.0,30.96133113]
[1748391681735,5.6785,176.02,176.0,30.96133113]
[1748391681925,0.04087345,176.04,176.0,30.96133113]
[1748391682534,0.04087345,176.04,176.01,5.6786]
[1748391684230,0.04087345,176.04,176.02,5.6784]
[1748391685035,0.04087345,176.04,176.03,5.6781]
[1748391685334,0.04087345,176.04,176.0,30.96133113]
[1748391685833,0.04087345,176.04,176.01,5.6786]
[1748391686038,0.04087345,176.04,176.0,30.96133113]
[1748391686429,0.04087345,176.04,176.0,34.87943113]
[1748391687335,0.04087345,176.04,176.02,5.6782]
[1748391690132,0.04087345,176.04,176.03,5.6781]
[1748391690327,521.28,176.15,176.02,6.51220436]
[1748391690535,36.1648,176.15,176.05,6.51220436]